fUST/lending_fUST_20250611
["ID","MTS","AMOUNT","RATE_DAILY","PERIOD"]
[365360951,1749618642117,-340.0,0.00021643,4]
[365360952,1749618642126,-460.0,0.00021643,4]
[365360953,1749618642136,-515.90855456,0.00021643,4]
[365360955,1749618642145,-460.0,0.00021643,4]
[365360957,1749618642154,-348.23200574,0.00021643,4]
[365360959,1749618642163,-1425.26,0.00021643,4]
[365360960,1749618642172,-350.0,0.00021643,4]
[365360963,1749618642185,-460.0,0.00021643,4]
[365360964,1749618642194,-460.0,0.00021643,4]
[365360967,1749618642203,-385.52197514,0.00021643,4]
[365360969,1749618642213,-460.0,0.00021643,4]
[365360971,1749618642222,-460.0,0.00021643,4]
[365360973,1749618642233,-460.0,0.00021643,4]
[365360975,1749618642244,-460.0,0.00021643,4]
[365360977,1749618642253,-460.0,0.00021643,4]
[365360979,1749618642263,-548.66,0.00021643,4]
[365360981,1749618642273,-460.0,0.00021643,4]
[365360983,1749618642282,-460.0,0.00021643,4]
[365360985,1749618642291,-460.0,0.00021643,4]
[365360987,1749618642300,-460.0,0.00021643,4]
[365360989,1749618642309,-1152.11,0.00021643,4]
[365360991,1749618642319,-380.0,0.00021643,4]
[365360993,1749618642328,-460.0,0.00021643,4]
[365360995,1749618642337,-460.0,0.00021643,4]
[365360997,1749618642346,-1145.47,0.00021643,4]
[365360999,1749618642356,-460.0,0.00021643,4]
[365361001,1749618642365,-460.0,0.00021643,4]
[365361003,1749618642375,-380.0,0.00021643,4]
[365361005,1749618642384,-921.54,0.00021643,4]
[365361007,1749618642393,-612.5,0.00021643,4]
[365361009,1749618642403,-343.45204961,0.00021643,4]
[365361011,1749618642412,-460.0,0.00021643,4]
[365361013,1749618642421,-2311.75,0.00021643,4]
[365361015,1749618642430,-370.0,0.00021643,4]
[365361017,1749618642439,-460.0,0.00021643,4]
[365361019,1749618642448,-460.0,0.00021643,4]
[365361021,1749618642458,-460.0,0.00021643,4]
[365361023,1749618642467,-460.0,0.00021643,4]
[365361025,1749618642476,-1072.87,0.00021643,4]
[365361027,1749618642485,-838.22,0.00021643,4]
[365361029,1749618642495,-1030.39,0.00021643,4]
[365361031,1749618642504,-389.25462796,0.00021643,4]
[365361033,1749618642513,-370.0,0.00021643,4]
[365361035,1749618642522,-460.0,0.00021643,4]
[365361037,1749618642532,-460.0,0.00021643,4]
[365361039,1749618642541,-460.0,0.00021643,4]
[365361041,1749618642551,-460.0,0.00021643,4]
[365361043,1749618642560,-400.0,0.00021643,4]
[365361045,1749618642570,-382.27558329,0.00021643,4]
[365361047,1749618642579,-1694.41,0.00021643,4]
[365361049,1749618642589,-460.0,0.00021643,4]
[365361051,1749618642598,-2663.9,0.00021643,4]
[365361053,1749618642608,-460.0,0.00021643,4]
[365361055,1749618642617,-460.0,0.00021643,4]
[365361057,1749618642627,-489.79,0.00021643,4]
[365361059,1749618642637,-460.0,0.00021643,2]
[365361061,1749618642646,-460.0,0.00021643,4]
[365361063,1749618642655,-460.0,0.00021643,4]
[365361065,1749618642664,-460.0,0.00021643,4]
[365361067,1749618642673,-460.0,0.00021643,4]
[365361069,1749618642682,-2958.32,0.00021643,4]
[365361071,1749618642691,-460.0,0.00021643,4]
[365361073,1749618642701,-460.0,0.00021643,4]
[365361075,1749618642711,-593.74,0.00021643,4]
[365361077,1749618642721,-2741.85,0.00021643,4]
[365361079,1749618642731,-706.38,0.00021643,4]
[365361080,1749618642740,-460.0,0.00021643,4]
[365361081,1749618642749,-460.0,0.00021643,4]
[365361082,1749618642759,-2831.73,0.00021643,4]
[365361083,1749618642768,-370.0,0.00021643,4]
[365361084,1749618642778,-460.0,0.00021643,4]
[365361085,1749618642787,-460.0,0.00021643,4]
[365361087,1749618642797,-1838.86103278,0.00021671,2]
[365361089,1749618642806,-2835.96191252,0.00021728,5]
[365361090,1749618642815,-2835.96191252,0.00021866,6]
[365361091,1749618642825,-460.0,0.00021917,4]
[365361092,1749618642835,-460.0,0.00021917,4]
[365361093,1749618642845,-460.0,0.00021917,4]
[365361094,1749618642854,-460.0,0.00021917,4]
[365361095,1749618642864,-340.04325517,0.00021917,4]
[365361096,1749618642874,-283.61316749,0.00021917,4]
[365361098,1749618642883,-320.0,0.00021917,4]
[365361100,1749618642893,-460.0,0.00021917,4]
[365361102,1749618642902,-460.0,0.00021917,4]
[365361104,1749618642911,-336.96111193,0.00021917,4]
[365361106,1749618642922,-460.0,0.00021917,4]
[365361108,1749618642932,-354.28826946,0.00021917,4]
[365361109,1749618642941,-924.69,0.00021917,4]
[365361110,1749618642951,-460.0,0.00021917,4]
[365361111,1749618642960,-460.0,0.00021917,4]
[365361112,1749618642970,-320.0,0.00021917,4]
[365361113,1749618642980,-1227.57,0.00021917,4]
[365361114,1749618642990,-460.0,0.00021917,4]
[365361115,1749618642999,-460.0,0.00021917,4]
[365361117,1749618643008,-460.0,0.00021917,4]
[365361119,1749618643017,-1090.3,0.00021917,4]
[365361121,1749618643026,-290.0,0.00021917,4]
[365361122,1749618643036,-460.0,0.00021917,4]
[365361124,1749618643045,-460.0,0.00021917,4]
[365361126,1749618643055,-460.0,0.00021917,4]
[365361128,1749618643064,-480.16,0.00021917,4]
[365361130,1749618643073,-460.0,0.00021917,4]
[365361132,1749618643083,-279.39463629,0.00021917,4]
[365361134,1749618643093,-466.01447911,0.00021917,4]
[365361136,1749618643102,-460.0,0.00021917,4]
[365361138,1749618643112,-1425.26,0.00021917,4]
[365361140,1749618643121,-460.0,0.00021917,4]
[365361142,1749618643131,-460.0,0.00021917,4]
[365361144,1749618643141,-460.0,0.00021917,4]
[365361146,1749618643150,-460.0,0.00021917,4]
[365361147,1749618643160,-460.0,0.00021917,4]
[365361148,1749618643170,-340.0,0.00021917,4]
[365361149,1749618643184,-460.0,0.00021917,4]
[365361150,1749618643193,-460.0,0.00021917,4]
[365361151,1749618643203,-350.0,0.00021917,4]
[365361152,1749618643212,-460.0,0.00021917,4]
[365361153,1749618643222,-460.0,0.00021917,4]
[365361154,1749618643232,-1152.11,0.00021917,4]
[365361155,1749618643241,-360.0,0.00021917,4]
[365361156,1749618643251,-460.0,0.00021917,4]
[365361157,1749618643260,-1145.47,0.00021917,4]
[365361158,1749618643270,-364.85902584,0.00021917,4]
[365361159,1749618643279,-460.0,0.00021917,4]
[365361160,1749618643288,-921.54,0.00021917,4]
[365361161,1749618643298,-612.5,0.00021917,4]
[365361163,1749618643307,-460.0,0.00021917,4]
[365361165,1749618643317,-2311.75,0.00021917,4]
[365361167,1749618643326,-460.0,0.00021917,4]
[365361169,1749618643336,-460.0,0.00021917,4]
[365361171,1749618643346,-460.0,0.00021917,4]
[365361173,1749618643355,-400.0,0.00021917,4]
[365361175,1749618643365,-1072.87,0.00021917,4]
[365361177,1749618643375,-838.22,0.00021917,4]
[365361179,1749618643384,-1030.39,0.00021917,4]
[365361181,1749618643394,-460.0,0.00021917,4]
[365361183,1749618643404,-380.0,0.00021917,4]
[365361185,1749618643413,-340.0,0.00021917,4]
[365361187,1749618643423,-460.0,0.00021917,4]
[365361189,1749618643433,-1694.41,0.00021917,4]
[365361190,1749618643442,-289.75034397,0.00021917,4]
[365361191,1749618643452,-2663.9,0.00021917,4]
[365361192,1749618643462,-460.0,0.00021917,4]
[365361193,1749618643471,-460.0,0.00021917,4]
[365361194,1749618643481,-489.79,0.00021917,4]
[365361195,1749618643490,-460.0,0.00021917,2]
[365361196,1749618643499,-460.0,0.00021917,4]
[365361198,1749618643512,-460.0,0.00021917,4]
[365361200,1749618643522,-460.0,0.00021917,4]
[365361201,1749618643532,-460.0,0.00021917,4]
[365361202,1749618643541,-2958.32,0.00021917,4]
[365361203,1749618643551,-460.0,0.00021917,4]
[365361205,1749618643561,-460.0,0.00021917,4]
[365361207,1749618643571,-593.74,0.00021917,4]
[365361209,1749618643580,-2741.85,0.00021917,4]
[365361210,1749618643589,-706.38,0.00021917,4]
[365361211,1749618643598,-460.0,0.00021917,4]
[365361212,1749618643608,-330.53136405,0.00021917,4]
[365361213,1749618643617,-2831.73,0.00021917,4]
[365361214,1749618643629,-460.0,0.00021917,4]
[365361215,1749618643638,-320.0,0.00021917,4]
[365361216,1749618643648,-420.0,0.00021958,2]
[365361217,1749618643657,-309.0,0.00021958,2]
[365361218,1749618643666,-420.0,0.0002196,2]
[365361219,1749618643676,-27121.65772931,0.00022,7]
[365361220,1749618643716,-1010.96841855,0.00022,7]
[365361278,1749618644471,-46787.65141065,0.00020343,2]
[365361280,1749618644481,-460.0,0.00021095,4]
[365361282,1749618644491,-21153.73385214,0.00022,7]
[365361284,1749618644500,-160.0,0.00022,7]
[365361286,1749618644510,-197.0,0.00022,2]
[365361288,1749618644519,-2835.96191252,0.00022003,6]
[365361290,1749618644529,-501.9396443,0.0002204,2]
[365361292,1749618644538,-567.2069987,0.00022044,2]
[365361294,1749618644548,-502.39152022,0.00022044,2]
[365361296,1749618644558,-600.0,0.00022044,2]
[365361298,1749618644567,-501.29927995,0.00022044,2]
[365361299,1749618644577,-506.16225976,0.00022065,2]
[365361301,1749618644586,-491.60046574,0.00022065,2]
[365361302,1749618644595,-501.56200485,0.00022065,2]
[365361304,1749618644604,-500.0,0.00022065,2]
[365361306,1749618644613,-500.53643659,0.00022065,2]
[365361308,1749618644623,-503.96951609,0.00022065,2]
[365361310,1749618644632,-365.0707398,0.00022082,2]
[365361312,1749618644641,-365.0707398,0.00022082,2]
[365361314,1749618644651,-365.0707398,0.00022082,2]
[365361316,1749618644660,-365.0707398,0.00022082,2]
[365361318,1749618644669,-365.0707398,0.00022082,2]
[365361320,1749618644679,-365.0707398,0.00022082,2]
[365361322,1749618644688,-348.0100409,0.00022082,2]
[365361324,1749618644697,-729.438125,0.00022082,2]
[365361326,1749618644707,-424.19973472,0.00022091,2]
[365361327,1749618644716,-213.16534259,0.00022091,2]
[365361329,1749618644725,-160.0,0.00022091,2]
[365361331,1749618644735,-160.0,0.00022091,2]
[365361333,1749618644745,-229.71724145,0.00022091,2]
[365361335,1749618644755,-160.0,0.00022091,2]
[365361338,1749618644766,-844.64040732,0.00022091,2]
[365361340,1749618644775,-835.03886221,0.00022091,2]
[365361342,1749618644785,-11860.25191276,0.00022095,2]
[365361344,1749618644794,-2835.96191252,0.00022141,6]
[365361345,1749618644803,-500.0,0.0002216,2]
[365361347,1749618644812,-300.0,0.00022191,4]
[365361350,1749618644822,-300.0,0.00022191,4]
[365361352,1749618644831,-300.0,0.00022191,4]
[365361354,1749618644841,-300.0,0.00022191,4]
[365361355,1749618644850,-360.0,0.00022191,4]
[365361357,1749618644860,-360.0,0.00022191,4]
[365361359,1749618644870,-360.0,0.00022191,4]
[365361362,1749618644880,-924.69,0.00022191,4]
[365361364,1749618644890,-340.0,0.00022191,4]
[365361366,1749618644900,-460.0,0.00022191,4]
[365361368,1749618644910,-460.0,0.00022191,4]
[365361370,1749618644919,-460.0,0.00022191,4]
[365361372,1749618644929,-1090.3,0.00022191,4]
[365361374,1749618644938,-330.45499987,0.00022191,4]
[365361376,1749618644948,-460.0,0.00022191,4]
[365361378,1749618644958,-460.0,0.00022191,4]
[365361380,1749618644968,-480.16,0.00022191,4]
[365361382,1749618644977,-460.0,0.00022191,4]
[365361384,1749618644986,-460.0,0.00022191,4]
[365361385,1749618644995,-1425.26,0.00022191,4]
[365361387,1749618645005,-460.0,0.00022191,4]
[365361389,1749618645015,-460.0,0.00022191,4]
[365361392,1749618645025,-460.0,0.00022191,4]
[365361394,1749618645035,-460.0,0.00022191,4]
[365361395,1749618645044,-320.0,0.00022191,4]
[365361398,1749618645053,-317.05023977,0.00022191,4]
[365361400,1749618645062,-460.0,0.00022191,4]
[365361402,1749618645071,-460.0,0.00022191,4]
[365361403,1749618645080,-460.0,0.00022191,4]
[365361405,1749618645090,-1152.11,0.00022191,4]
[365361407,1749618645099,-310.0,0.00022191,4]
[365361410,1749618645108,-1145.47,0.00022191,4]
[365361412,1749618645118,-360.0,0.00022191,4]
[365361414,1749618645128,-921.54,0.00022191,4]
[365361416,1749618645140,-612.5,0.00022191,4]
[365361418,1749618645149,-460.0,0.00022191,4]
[365361420,1749618645159,-2311.75,0.00022191,4]
[365361422,1749618645168,-460.0,0.00022191,4]
[365361424,1749618645179,-328.40484658,0.00022191,4]
[365361426,1749618645191,-310.0,0.00022191,4]
[365361428,1749618645200,-1072.87,0.00022191,4]
[365361430,1749618645209,-838.22,0.00022191,4]
[365361432,1749618645219,-1030.39,0.00022191,4]
[365361434,1749618645230,-530.0,0.00022191,4]
[365361436,1749618645239,-360.0,0.00022191,4]
[365361438,1749618645248,-1694.41,0.00022191,4]
[365361440,1749618645260,-2663.9,0.00022191,4]
[365361442,1749618645269,-380.0,0.00022191,4]
[365361444,1749618645279,-460.0,0.00022191,4]
[365361445,1749618645288,-489.79,0.00022191,4]
[365361446,1749618645297,-527.61,0.00022191,2]
[365361447,1749618645306,-360.0,0.00022191,4]
[365361448,1749618645315,-460.0,0.00022191,4]
[365361449,1749618645324,-320.83407971,0.00022191,4]
[365361450,1749618645333,-460.0,0.00022191,4]
[365361451,1749618645342,-2958.32,0.00022191,4]
[365361452,1749618645351,-236.57699151,0.00022191,4]
[365361453,1749618645361,-460.0,0.00022191,4]
[365361454,1749618645370,-593.74,0.00022191,4]
[365361455,1749618645379,-2741.85,0.00022191,4]
[365361456,1749618645388,-706.38,0.00022191,4]
[365361457,1749618645397,-379.44324504,0.00022191,4]
[365361458,1749618645407,-2831.73,0.00022191,4]
[365361459,1749618645416,-210.0,0.00022191,4]
[365361460,1749618645425,-173.61221487,0.000222,69]
[365361461,1749618645433,-2835.96191252,0.00022279,6]
[365361462,1749618645442,-799.1,0.0002228,2]
[365361463,1749618645451,-160.0,0.00022314,7]
[365361464,1749618645460,-1838.86103278,0.00022348,2]
[365361465,1749618645470,-160.0,0.0002237,3]
[365361466,1749618645478,-2835.96191252,0.00022417,7]
[365361467,1749618645487,-213.92,0.00022464,2]
[365361469,1749618645497,-924.69,0.00022465,4]
[365361471,1749618645506,-460.0,0.00022465,4]
[365361473,1749618645515,-460.0,0.00022465,4]
[365361475,1749618645525,-460.0,0.00022465,4]
[365361477,1749618645534,-1090.3,0.00022465,4]
[365361479,1749618645543,-460.0,0.00022465,4]
[365361481,1749618645552,-460.0,0.00022465,4]
[365361483,1749618645561,-480.16,0.00022465,4]
[365361485,1749618645570,-460.0,0.00022465,4]
[365361487,1749618645579,-460.0,0.00022465,4]
[365361489,1749618645589,-1425.26,0.00022465,4]
[365361491,1749618645598,-460.0,0.00022465,4]
[365361493,1749618645608,-460.0,0.00022465,4]
[365361495,1749618645618,-460.0,0.00022465,4]
[365361497,1749618645627,-460.0,0.00022465,4]
[365361499,1749618645636,-460.0,0.00022465,4]
[365361501,1749618645646,-460.0,0.00022465,4]
[365361503,1749618645656,-460.0,0.00022465,4]
[365361505,1749618645666,-1152.11,0.00022465,4]
[365361507,1749618645675,-1145.47,0.00022465,4]
[365361509,1749618645685,-921.54,0.00022465,4]
[365361511,1749618645694,-612.5,0.00022465,4]
[365361513,1749618645703,-565.29,0.00022465,4]
[365361515,1749618645713,-2311.75,0.00022465,4]
[365361517,1749618645723,-350.0,0.00022465,4]
[365361519,1749618645732,-1072.87,0.00022465,4]
[365361521,1749618645742,-838.22,0.00022465,4]
[365361523,1749618645751,-1030.39,0.00022465,4]
[365361525,1749618645760,-1694.41,0.00022465,4]
[365361527,1749618645770,-2663.9,0.00022465,4]
[365361529,1749618645779,-460.0,0.00022465,4]
[365361531,1749618645789,-489.79,0.00022465,4]
[365361533,1749618645798,-460.0,0.00022465,4]
[365361535,1749618645807,-460.0,0.00022465,4]
[365361537,1749618645817,-2958.32,0.00022465,4]
[365361539,1749618645827,-460.0,0.00022465,4]
[365361541,1749618645837,-593.74,0.00022465,4]
[365361543,1749618645846,-2741.85,0.00022465,4]
[365361545,1749618645855,-706.38,0.00022465,4]
[365361547,1749618645865,-2831.73,0.00022465,4]
[365361549,1749618645874,-463.69,0.000225,7]
[365361551,1749618645884,-1601.87,0.000225,7]
[365361553,1749618645894,-2835.96191252,0.00022555,7]
[365361555,1749618645904,-1200.0,0.00022592,2]
[365361557,1749618645914,-1000.0,0.00022613,2]
[365361559,1749618645923,-2835.96191252,0.00022693,7]
[365361561,1749618645933,-500.0,0.00022699,2]
[365361563,1749618645942,-500.0,0.00022699,2]
[365361565,1749618645952,-500.0,0.00022699,2]
[365361567,1749618645961,-500.0,0.00022699,2]
[365361569,1749618645970,-500.0,0.00022699,2]
[365361571,1749618645979,-500.0,0.00022699,2]
[365361573,1749618645989,-500.0,0.00022699,2]
[365361575,1749618645998,-500.0,0.00022699,2]
[365361577,1749618646007,-500.0,0.00022699,2]
[365361579,1749618646017,-500.0,0.00022699,2]
[365361581,1749618646026,-459.4289,0.00022699,2]
[365361583,1749618646035,-618.22854998,0.00022699,2]
[365361585,1749618646044,-500.0,0.00022699,2]
[365361587,1749618646054,-500.0,0.00022699,2]
[365361589,1749618646063,-500.0,0.00022699,2]
[365361591,1749618646073,-500.0,0.00022699,2]
[365361593,1749618646083,-500.0,0.00022699,2]
[365361595,1749618646092,-500.0,0.00022699,2]
[365361597,1749618646101,-500.0,0.00022699,2]
[365361599,1749618646111,-404.42589163,0.00022699,2]
[365361601,1749618646121,-500.0,0.00022699,2]
[365361603,1749618646130,-500.0,0.00022699,2]
[365361605,1749618646141,-500.0,0.00022699,2]
[365361608,1749618646154,-500.0,0.00022699,2]
[365361609,1749618646163,-500.0,0.00022699,2]
[365361612,1749618646173,-500.0,0.00022699,2]
[365361613,1749618646185,-500.0,0.00022699,2]
[365361615,1749618646194,-500.0,0.00022699,2]
[365361618,1749618646204,-500.0,0.00022699,2]
[365361620,1749618646214,-500.0,0.00022699,2]
[365361621,1749618646223,-500.0,0.00022699,2]
[365361624,1749618646234,-500.0,0.00022699,2]
[365361625,1749618646244,-33727.36,0.000227,2]
[365361628,1749618646254,-924.69,0.00022739,4]
[365361630,1749618646264,-460.0,0.00022739,4]
[365361631,1749618646273,-320.0,0.00022739,4]
[365361634,1749618646283,-460.0,0.00022739,4]
[365361636,1749618646292,-1090.3,0.00022739,4]
[365361638,1749618646302,-460.0,0.00022739,4]
[365361640,1749618646311,-276.00236887,0.00022739,4]
[365361642,1749618646320,-480.16,0.00022739,4]
[365361644,1749618646329,-460.0,0.00022739,4]
[365361645,1749618646339,-460.0,0.00022739,4]
[365361648,1749618646348,-1425.26,0.00022739,4]
[365361650,1749618646357,-460.0,0.00022739,4]
[365361652,1749618646367,-460.0,0.00022739,4]
[365361654,1749618646377,-460.0,0.00022739,4]
[365361656,1749618646386,-228.2703138,0.00022739,4]
[365361658,1749618646395,-460.0,0.00022739,4]
[365361659,1749618646404,-460.0,0.00022739,4]
[365361661,1749618646413,-460.0,0.00022739,4]
[365361664,1749618646423,-1152.11,0.00022739,4]
[365361666,1749618646433,-1145.47,0.00022739,4]
[365361668,1749618646442,-921.54,0.00022739,4]
[365361670,1749618646451,-612.5,0.00022739,4]
[365361672,1749618646461,-2311.75,0.00022739,4]
[365361674,1749618646472,-1072.87,0.00022739,4]
[365361676,1749618646481,-838.22,0.00022739,4]
[365361678,1749618646491,-1030.39,0.00022739,4]
[365361680,1749618646501,-1694.41,0.00022739,4]
[365361682,1749618646510,-2663.9,0.00022739,4]
[365361684,1749618646520,-460.0,0.00022739,4]
[365361686,1749618646529,-489.79,0.00022739,4]
[365361688,1749618646539,-460.0,0.00022739,4]
[365361690,1749618646548,-460.0,0.00022739,4]
[365361692,1749618646557,-2958.32,0.00022739,4]
[365361694,1749618646566,-460.0,0.00022739,4]
[365361696,1749618646576,-593.74,0.00022739,4]
[365361698,1749618646586,-2741.85,0.00022739,4]
[365361700,1749618646595,-706.38,0.00022739,4]
[365361702,1749618646605,-2831.73,0.00022739,4]
[365361704,1749618646614,-2835.96191252,0.00022831,8]
[365361706,1749618646624,-377.85658625,0.00022853,2]
[365361708,1749618646634,-5000.0,0.00022859,2]
[365361710,1749618646643,-207.4,0.00022859,2]
[365361712,1749618646652,-151.0,0.00022859,2]
[365361714,1749618646661,-151.0,0.00022859,2]
[365361716,1749618646671,-151.0,0.00022859,2]
[365361728,1749618646775,-151.0,0.00022859,2]
[365361730,1749618646785,-151.0,0.00022859,2]
[365361732,1749618646795,-151.0,0.00022859,2]
[365361734,1749618646804,-151.0,0.00022859,2]
[365361736,1749618646814,-151.0,0.00022859,2]
[365361738,1749618646824,-151.0,0.00022859,2]
[365361740,1749618646834,-151.0,0.00022859,2]
[365361742,1749618646843,-151.0,0.00022859,2]
[365361744,1749618646853,-151.0,0.00022859,2]
[365361746,1749618646862,-151.0,0.00022859,2]
[365361748,1749618646872,-170.69580346,0.00022859,2]
[365361750,1749618646882,-2835.96191252,0.00022969,8]
[365361752,1749618646891,-924.69,0.00023013,4]
[365361754,1749618646900,-460.0,0.00023013,4]
[365361756,1749618646910,-460.0,0.00023013,4]
[365361758,1749618646919,-1090.3,0.00023013,4]
[365361760,1749618646929,-460.0,0.00023013,4]
[365361762,1749618646938,-480.16,0.00023013,4]
[365361764,1749618646947,-460.0,0.00023013,4]
[365361766,1749618646957,-460.0,0.00023013,4]
[365361768,1749618646966,-1425.26,0.00023013,4]
[365361770,1749618646976,-460.0,0.00023013,4]
[365361772,1749618646986,-460.0,0.00023013,4]
[365361775,1749618646996,-240.0,0.00023013,4]
[365361777,1749618647005,-460.0,0.00023013,4]
[365361778,1749618647015,-460.0,0.00023013,4]
[365361780,1749618647024,-460.0,0.00023013,4]
[365361783,1749618647034,-1152.11,0.00023013,4]
[365361785,1749618647043,-1145.47,0.00023013,4]
[365361786,1749618647053,-921.54,0.00023013,4]
[365361789,1749618647062,-612.5,0.00023013,4]
[365361790,1749618647071,-2311.75,0.00023013,4]
[365361792,1749618647080,-1072.87,0.00023013,4]
[365361794,1749618647090,-838.22,0.00023013,4]
[365361796,1749618647099,-1030.39,0.00023013,4]
[365361798,1749618647108,-1694.41,0.00023013,4]
[365361801,1749618647118,-2663.9,0.00023013,4]
[365361803,1749618647128,-332.25043676,0.00023013,4]
[365361805,1749618647137,-489.79,0.00023013,4]
[365361807,1749618647146,-460.0,0.00023013,4]
[365361809,1749618647155,-403.26763229,0.00023013,4]
[365361811,1749618647164,-2958.32,0.00023013,4]
[365361813,1749618647174,-460.0,0.00023013,4]
[365361815,1749618647187,-593.74,0.00023013,4]
[365361816,1749618647197,-2741.85,0.00023013,4]
[365361819,1749618647207,-706.38,0.00023013,4]
[365361821,1749618647217,-2831.73,0.00023013,4]
[365361823,1749618647228,-1838.86103278,0.00023024,2]
[365361825,1749618647237,-730.1414796,0.00023041,2]
[365361827,1749618647247,-160.0,0.0002306,4]
[365361829,1749618647258,-805.0,0.00023081,2]
[365361831,1749618647268,-49286.36,0.000231,7]
[365361833,1749618647277,-160.0,0.000231,7]
[365361835,1749618647287,-151.927579,0.000231,7]
[365361837,1749618647296,-151.0,0.000231,7]
[365361839,1749618647306,-2835.96191252,0.00023107,8]
[365361841,1749618647315,-1210.524356,0.0002314,2]
[365361843,1749618647324,-1500.0,0.00023161,2]
[365361845,1749618647333,-2835.96191252,0.00023245,8]
[365361847,1749618647342,-1065.47,0.00023249,2]
[365361849,1749618647351,-500.0,0.00023256,2]
[365361851,1749618647361,-357.2019528,0.0002326,2]
[365361853,1749618647370,-924.69,0.00023287,4]
[365361855,1749618647380,-425.54,0.00023287,4]
[365361857,1749618647389,-460.0,0.00023287,4]
[365361859,1749618647398,-1090.3,0.00023287,4]
[365361861,1749618647408,-460.0,0.00023287,4]
[365361863,1749618647417,-480.16,0.00023287,4]
[365361865,1749618647426,-460.0,0.00023287,4]
[365361867,1749618647435,-460.0,0.00023287,4]
[365361869,1749618647444,-1425.26,0.00023287,4]
[365361871,1749618647454,-460.0,0.00023287,4]
[365361873,1749618647464,-460.0,0.00023287,4]
[365361875,1749618647473,-460.0,0.00023287,4]
[365361877,1749618647483,-460.0,0.00023287,4]
[365361879,1749618647493,-460.0,0.00023287,4]
[365361881,1749618647502,-1152.11,0.00023287,4]
[365361883,1749618647512,-1145.47,0.00023287,4]
[365361885,1749618647521,-151.6011,0.00023287,7]
[365361887,1749618647531,-921.54,0.00023287,4]
[365361889,1749618647541,-612.5,0.00023287,4]
[365361891,1749618647550,-2311.75,0.00023287,4]
[365361893,1749618647559,-1072.87,0.00023287,4]
[365361895,1749618647568,-838.22,0.00023287,4]
[365361897,1749618647578,-1030.39,0.00023287,4]
[365361899,1749618647587,-151.0,0.00023287,7]
[365361901,1749618647597,-1694.41,0.00023287,4]
[365361904,1749618647607,-2663.9,0.00023287,4]
[365361905,1749618647615,-489.79,0.00023287,4]
[365361908,1749618647625,-560.0,0.00023287,4]
[365361909,1749618647635,-2958.32,0.00023287,4]
[365361911,1749618647644,-460.0,0.00023287,4]
[365361914,1749618647653,-593.74,0.00023287,4]
[365361915,1749618647663,-2741.85,0.00023287,4]
[365361918,1749618647673,-706.38,0.00023287,4]
[365361919,1749618647683,-151.0,0.00023287,7]
[365361921,1749618647693,-2831.73,0.00023287,4]
[365361923,1749618647702,-153.0,0.00023315,2]
[365361925,1749618647712,-158.7816813,0.00023315,2]
[365361928,1749618647722,-568.4352116,0.00023315,2]
[365361930,1749618647731,-153.0,0.00023315,2]
[365361932,1749618647742,-153.0,0.00023315,2]
[365361934,1749618647751,-153.0,0.00023315,2]